{"text_format":"1","workbook":"xlsx","n_sheets":4,"sheets":["Tabelle1","Tabelle2","Tabelle3","Tabelle4"],"not_rendered":{"charts":0,"images":0,"macros":1,"external_links":0,"defined_names":0,"comments":0,"pivot_tables":0},"unopened":[],"bounds":{"document_bytes":16777216,"sheet_cells":100000,"rows_first":2000,"rows_last":500,"rows_between":2000,"halvings":0,"cell_chars":16384,"cell_head_chars":4096},"cells_cut":0,"cells_raw":0,"read":"whole","date_system":"1900"}

{"sheet":"Tabelle1","index":0,"n_rows":101,"n_cols":18,"rows_kept":101,"cut":false,"hidden":false,"merged":[]}
["Farbcode","Farbe",null,null,null,null,null,"Tasuko programmiert von Peter Gallin, 09. April 2020"]
[1]
[2]
[3]
[4,null,null,null,null,null,null,"Seitenlänge: ",null,null,null,8]
[5]
[6]
[7]
[8]
[9]
[10,null,null,null,null,null,null,null,null,null,7,11,0,2,22,5,29,2]
[11,null,null,null,null,null,null,null,null,null,7,0,2,11,13,10,29,0]
[12,null,null,null,null,null,null,null,null,null,3,8,8,2,2,15,1,25]
[13,null,null,null,null,null,null,null,null,null,20,1,11,27,0,15,4,10]
[14,null,null,null,null,null,null,null,null,null,8,13,13,1,5,1,4,1]
[15,null,null,null,null,null,null,null,null,null,4,0,1,3,0,7,9,0]
[16,null,null,null,null,null,null,null,null,null,2,16,6,2,9,8,12,3]
[17,null,null,null,null,null,null,null,null,null,9,4,20,5,4,24,21,11]
[18]
[19]
[20]
[21]
[22]
[23]
[24]
[25]
[26]
[27]
[28]
[29]
[30]
[31]
[32]
[33]
[34]
[35]
[36]
[37]
[38]
[39]
[40]
[41]
[42]
[43]
[44]
[45]
[46]
[47]
[48]
[49]
[50]
[51]
[52]
[53]
[54]
[55]
[56]
[57]
[58]
[59]
[60]
[61]
[62]
[63]
[64]
[65]
[66]
[67]
[68]
[69]
[70]
[71]
[72]
[73]
[74]
[75]
[76]
[77]
[78]
[79]
[80]
[81]
[82]
[83]
[84]
[85]
[86]
[87]
[88]
[89]
[90]
[91]
[92]
[93]
[94]
[95]
[96]
[97]
[98]
[99]
[100]

{"sheet":"Tabelle2","index":1,"n_rows":23,"n_cols":291,"rows_kept":23,"cut":false,"hidden":false,"merged":[[19,0,19,2]]}
[]
[null,7,11,0,2,22,5,29,2]
[null,7,0,2,11,13,10,29,0]
[null,3,8,8,2,2,15,1,25,null,null,null,null,null,"n = ",null,8,null,"Vertikalschiebung =",null,null,null,null,null,{"$f":"1-$Q$4","v":-7},null,"Horizontalschiebung =",null,null,null,null,null,null,{"$f":"$Q$4-1","v":7}]
[null,20,1,11,27,0,15,4,10,null,null,null,null,null,"paare = ",null,null,7]
[null,8,13,13,1,5,1,4,1]
[null,4,0,1,3,0,7,9,0]
[null,2,16,6,2,9,8,12,3]
[null,9,4,20,5,4,24,21,11]
[]
[null,null,null,null,null,null,null,null,null,"s= 1",null,"ok",null,null,null,null,null,null,"s= 2",null,null,null,null,null,null,null,null,"s= 3",null,"ok",null,null,null,null,null,null,"s= 4",null,"ok",null,null,null,null,null,null,"s= 5",null,"ok",null,null,null,null,null,null,"s= 6",null,"ok",null,null,null,null,null,null,"s= 7",null,"ok",null,null,null,null,null,null,"s= 8",null,"ok",null,null,null,null,null,null,"s= 9",null,"ok",null,null,null,null,null,null,"s= 10",null,"ok",null,null,null,null,null,null,"s= 11",null,"ok",null,null,null,null,null,null,"s= 12",null,"ok",null,null,null,null,null,null,"s= 13",null,null,null,null,null,null,null,null,"s= 14",null,"ok",null,null,null,null,null,null,"s= 15",null,"ok",null,null,null,null,null,null,"s= 16",null,"ok",null,null,null,null,null,null,"s= 17",null,"ok",null,null,null,null,null,null,"s= 18",null,"ok",null,null,null,null,null,null,"s= 19",null,"ok",null,null,null,null,null,null,"s= 20",null,"ok",null,null,null,null,null,null,"s= 21",null,"ok",null,null,null,null,null,null,"s= 22",null,"ok",null,null,null,null,null,null,"s= 23",null,"ok",null,null,null,null,null,null,"s= 24",null,"ok",null,null,null,null,null,null,"s= 25",null,"ok",null,null,null,null,null,null,"s= 26",null,"ok",null,null,null,null,null,null,"s= 27",null,"ok",null,null,null,null,null,null,"s= 28",null,"ok",null,null,null,null,null,null,"s= 29",null,"ok",null,null,null,null,null,null,"s= 30",null,"ok",null,null,null,null,null,null,"s= 31",null,"ok",null,null,null,null,null,null,"s= 32",null,"ok"]
[null,null,null,null,null,null,null,null,null,null,null,null,null,null,null,null,null,null,null,null,"v","h",null,null,null,null,null,null,null,null,null,null,null,null,null,null,null,null,null,null,null,null,null,null,null,null,null,null,null,null,null,null,null,null,null,null,null,null,null,null,null,null,null,null,null,null,null,null,null,null,null,null,null,null,null,null,null,null,null,null,null,null,null,null,null,null,null,null,null,null,null,null,null,null,null,null,null,null,null,null,null,null,null,null,null,null,null,null,null,null,null,null,null,null,null,null,null,null,null,null,"v"]
[null,null,null,null,null,null,null,null,null,null,null,null,null,null,null,null,null,null,null,null,"v",null,null,null,null,null,null,null,null,null,null,null,null,null,null,null,null,null,null,null,null,null,null,null,null,null,null,null,null,null,null,null,null,null,null,null,null,null,null,null,null,null,null,null,null,null,null,null,null,null,null,null,null,null,null,null,null,null,null,null,null,null,null,null,null,null,null,null,null,null,null,null,null,null,null,null,null,null,null,null,null,null,null,null,null,null,null,null,null,null,null,null,null,null,null,null,null,null,null,"h","h"]
[]
[]
[]
[]
[]
["Summe"]
[{"$f":"SUM(E20:UT20)","v":6},null,null,null,null,null,null,null,null,{"$f":"$Q$4*$Q$4-COUNTIF(OFFSET(J19,$Y$4,0):OFFSET(J19,0,$AH$4),\"\")","v":0},null,null,null,null,null,null,null,null,{"$f":"$Q$4*$Q$4-COUNTIF(OFFSET(S19,$Y$4,0):OFFSET(S19,0,$AH$4),\"\")","v":3},null,null,null,null,null,null,null,null,{"$f":"$Q$4*$Q$4-COUNTIF(OFFSET(AB19,$Y$4,0):OFFSET(AB19,0,$AH$4),\"\")","v":0},null,null,null,null,null,null,null,null,{"$f":"$Q$4*$Q$4-COUNTIF(OFFSET(AK19,$Y$4,0):OFFSET(AK19,0,$AH$4),\"\")","v":0},null,null,null,null,null,null,null,null,{"$f":"$Q$4*$Q$4-COUNTIF(OFFSET(AT19,$Y$4,0):OFFSET(AT19,0,$AH$4),\"\")","v":0},null,null,null,null,null,null,null,null,{"$f":"$Q$4*$Q$4-COUNTIF(OFFSET(BC19,$Y$4,0):OFFSET(BC19,0,$AH$4),\"\")","v":0},null,null,null,null,null,null,null,null,{"$f":"$Q$4*$Q$4-COUNTIF(OFFSET(BL19,$Y$4,0):OFFSET(BL19,0,$AH$4),\"\")","v":0},null,null,null,null,null,null,null,null,{"$f":"$Q$4*$Q$4-COUNTIF(OFFSET(BU19,$Y$4,0):OFFSET(BU19,0,$AH$4),\"\")","v":0},null,null,null,null,null,null,null,null,{"$f":"$Q$4*$Q$4-COUNTIF(OFFSET(CD19,$Y$4,0):OFFSET(CD19,0,$AH$4),\"\")","v":0},null,null,null,null,null,null,null,null,{"$f":"$Q$4*$Q$4-COUNTIF(OFFSET(CM19,$Y$4,0):OFFSET(CM19,0,$AH$4),\"\")","v":0},null,null,null,null,null,null,null,null,{"$f":"$Q$4*$Q$4-COUNTIF(OFFSET(CV19,$Y$4,0):OFFSET(CV19,0,$AH$4),\"\")","v":0},null,null,null,null,null,null,null,null,{"$f":"$Q$4*$Q$4-COUNTIF(OFFSET(DE19,$Y$4,0):OFFSET(DE19,0,$AH$4),\"\")","v":0},null,null,null,null,null,null,null,null,{"$f":"$Q$4*$Q$4-COUNTIF(OFFSET(DN19,$Y$4,0):OFFSET(DN19,0,$AH$4),\"\")","v":3},null,null,null,null,null,null,null,null,{"$f":"$Q$4*$Q$4-COUNTIF(OFFSET(DW19,$Y$4,0):OFFSET(DW19,0,$AH$4),\"\")","v":0},null,null,null,null,null,null,null,null,{"$f":"$Q$4*$Q$4-COUNTIF(OFFSET(EF19,$Y$4,0):OFFSET(EF19,0,$AH$4),\"\")","v":0},null,null,null,null,null,null,null,null,{"$f":"$Q$4*$Q$4-COUNTIF(OFFSET(EO19,$Y$4,0):OFFSET(EO19,0,$AH$4),\"\")","v":0},null,null,null,null,null,null,null,null,{"$f":"$Q$4*$Q$4-COUNTIF(OFFSET(EX19,$Y$4,0):OFFSET(EX19,0,$AH$4),\"\")","v":0},null,null,null,null,null,null,null,null,{"$f":"$Q$4*$Q$4-COUNTIF(OFFSET(FG19,$Y$4,0):OFFSET(FG19,0,$AH$4),\"\")","v":0},null,null,null,null,null,null,null,null,{"$f":"$Q$4*$Q$4-COUNTIF(OFFSET(FP19,$Y$4,0):OFFSET(FP19,0,$AH$4),\"\")","v":0},null,null,null,null,null,null,null,null,{"$f":"$Q$4*$Q$4-COUNTIF(OFFSET(FY19,$Y$4,0):OFFSET(FY19,0,$AH$4),\"\")","v":0},null,null,null,null,null,null,null,null,{"$f":"$Q$4*$Q$4-COUNTIF(OFFSET(GH19,$Y$4,0):OFFSET(GH19,0,$AH$4),\"\")","v":0},null,null,null,null,null,null,null,null,{"$f":"$Q$4*$Q$4-COUNTIF(OFFSET(GQ19,$Y$4,0):OFFSET(GQ19,0,$AH$4),\"\")","v":0},null,null,null,null,null,null,null,null,{"$f":"$Q$4*$Q$4-COUNTIF(OFFSET(GZ19,$Y$4,0):OFFSET(GZ19,0,$AH$4),\"\")","v":0},null,null,null,null,null,null,null,null,{"$f":"$Q$4*$Q$4-COUNTIF(OFFSET(HI19,$Y$4,0):OFFSET(HI19,0,$AH$4),\"\")","v":0},null,null,null,null,null,null,null,null,{"$f":"$Q$4*$Q$4-COUNTIF(OFFSET(HR19,$Y$4,0):OFFSET(HR19,0,$AH$4),\"\")","v":0},null,null,null,null,null,null,null,null,{"$f":"$Q$4*$Q$4-COUNTIF(OFFSET(IA19,$Y$4,0):OFFSET(IA19,0,$AH$4),\"\")","v":0},null,null,null,null,null,null,null,null,{"$f":"$Q$4*$Q$4-COUNTIF(OFFSET(IJ19,$Y$4,0):OFFSET(IJ19,0,$AH$4),\"\")","v":0},null,null,null,null,null,null,null,null,{"$f":"$Q$4*$Q$4-COUNTIF(OFFSET(IS19,$Y$4,0):OFFSET(IS19,0,$AH$4),\"\")","v":0},null,null,null,null,null,null,null,null,{"$f":"$Q$4*$Q$4-COUNTIF(OFFSET(JB19,$Y$4,0):OFFSET(JB19,0,$AH$4),\"\")","v":0},null,null,null,null,null,null,null,null,{"$f":"$Q$4*$Q$4-COUNTIF(OFFSET(JK19,$Y$4,0):OFFSET(JK19,0,$AH$4),\"\")","v":0},null,null,null,null,null,null,null,null,{"$f":"$Q$4*$Q$4-COUNTIF(OFFSET(JT19,$Y$4,0):OFFSET(JT19,0,$AH$4),\"\")","v":0},null,null,null,null,null,null,null,null,{"$f":"$Q$4*$Q$4-COUNTIF(OFFSET(KC19,$Y$4,0):OFFSET(KC19,0,$AH$4),\"\")","v":0}]
[]
[null,null,null,null,null,null,null,null,null,null,null,null,null,null,null,null,null,null,2,3,null,null,null,null,null,null,null,null,null,null,null,null,null,null,null,null,null,null,null,null,null,null,null,null,null,null,null,null,null,null,null,null,null,null,null,null,null,null,null,null,null,null,null,null,null,null,null,null,null,null,null,null,null,null,null,null,null,null,null,null,null,null,null,null,null,null,null,null,null,null,null,null,null,null,null,null,null,null,null,null,null,null,null,null,null,null,null,null,null,null,null,null,null,null,null,null,null,3,11]
[null,null,null,null,null,null,null,null,null,null,null,null,null,null,null,null,null,null,2,10,null,null,null,null,null,null,null,null,null,null,null,null,null,null,null,null,null,null,null,null,null,null,null,null,null,null,null,null,null,null,null,null,null,null,null,null,null,null,null,null,null,null,null,null,null,null,null,null,null,null,null,null,null,null,null,null,null,null,null,null,null,null,null,null,null,null,null,null,null,null,null,null,null,null,null,null,null,null,null,null,null,null,null,null,null,null,null,null,null,null,null,null,null,null,null,null,null,10,11]

{"sheet":"Tabelle3","index":2,"n_rows":23,"n_cols":291,"rows_kept":23,"cut":false,"hidden":false,"merged":[[19,0,19,2]]}
[]
[null,7,11,0,2,22,5,29,2]
[null,7,0,2,11,13,10,29,0]
[null,3,8,8,2,2,15,1,25,null,null,null,null,null,"n = ",null,8,null,"Vertikalschiebung =",null,null,null,null,null,{"$f":"1-$Q$4","v":-7},null,"Horizontalschiebung =",null,null,null,null,null,null,{"$f":"$Q$4-1","v":7}]
[null,20,1,11,27,0,15,4,10,null,null,null,null,null,"paare = ",null,null,7]
[null,8,13,13,1,5,1,4,1]
[null,4,0,1,3,0,7,9,0]
[null,2,16,6,2,9,8,12,3]
[null,9,4,20,5,4,24,21,11]
[]
[null,null,null,null,null,null,null,null,null,"s= 1",null,"ok",null,null,null,null,null,null,"s= 2",null,null,null,null,null,null,null,null,"s= 3",null,"ok",null,null,null,null,null,null,"s= 4",null,"ok",null,null,null,null,null,null,"s= 5",null,"ok",null,null,null,null,null,null,"s= 6",null,"ok",null,null,null,null,null,null,"s= 7",null,"ok",null,null,null,null,null,null,"s= 8",null,"ok",null,null,null,null,null,null,"s= 9",null,"ok",null,null,null,null,null,null,"s= 10",null,"ok",null,null,null,null,null,null,"s= 11",null,"ok",null,null,null,null,null,null,"s= 12",null,"ok",null,null,null,null,null,null,"s= 13",null,null,null,null,null,null,null,null,"s= 14",null,"ok",null,null,null,null,null,null,"s= 15",null,"ok",null,null,null,null,null,null,"s= 16",null,"ok",null,null,null,null,null,null,"s= 17",null,"ok",null,null,null,null,null,null,"s= 18",null,"ok",null,null,null,null,null,null,"s= 19",null,"ok",null,null,null,null,null,null,"s= 20",null,"ok",null,null,null,null,null,null,"s= 21",null,"ok",null,null,null,null,null,null,"s= 22",null,"ok",null,null,null,null,null,null,"s= 23",null,"ok",null,null,null,null,null,null,"s= 24",null,"ok",null,null,null,null,null,null,"s= 25",null,"ok",null,null,null,null,null,null,"s= 26",null,"ok",null,null,null,null,null,null,"s= 27",null,"ok",null,null,null,null,null,null,"s= 28",null,"ok",null,null,null,null,null,null,"s= 29",null,"ok",null,null,null,null,null,null,"s= 30",null,"ok",null,null,null,null,null,null,"s= 31",null,"ok",null,null,null,null,null,null,"s= 32",null,"ok"]
[null,null,null,null,null,null,null,null,null,null,null,null,null,null,null,null,null,null,null,null,"v","h",null,null,null,null,null,null,null,null,null,null,null,null,null,null,null,null,null,null,null,null,null,null,null,null,null,null,null,null,null,null,null,null,null,null,null,null,null,null,null,null,null,null,null,null,null,null,null,null,null,null,null,null,null,null,null,null,null,null,null,null,null,null,null,null,null,null,null,null,null,null,null,null,null,null,null,null,null,null,null,null,null,null,null,null,null,null,null,null,null,null,null,null,null,null,null,null,null,null,"v"]
[null,null,null,null,null,null,null,null,null,null,null,null,null,null,null,null,null,null,null,null,"v",null,null,null,null,null,null,null,null,null,null,null,null,null,null,null,null,null,null,null,null,null,null,null,null,null,null,null,null,null,null,null,null,null,null,null,null,null,null,null,null,null,null,null,null,null,null,null,null,null,null,null,null,null,null,null,null,null,null,null,null,null,null,null,null,null,null,null,null,null,null,null,null,null,null,null,null,null,null,null,null,null,null,null,null,null,null,null,null,null,null,null,null,null,null,null,null,null,null,"h","h"]
[]
[]
[]
[]
[]
["Summe"]
[{"$f":"SUM(E20:UT20)","v":6},null,null,null,null,null,null,null,null,{"$f":"$Q$4*$Q$4-COUNTIF(OFFSET(J19,$Y$4,0):OFFSET(J19,0,$AH$4),\"\")","v":0},null,null,null,null,null,null,null,null,{"$f":"$Q$4*$Q$4-COUNTIF(OFFSET(S19,$Y$4,0):OFFSET(S19,0,$AH$4),\"\")","v":3},null,null,null,null,null,null,null,null,{"$f":"$Q$4*$Q$4-COUNTIF(OFFSET(AB19,$Y$4,0):OFFSET(AB19,0,$AH$4),\"\")","v":0},null,null,null,null,null,null,null,null,{"$f":"$Q$4*$Q$4-COUNTIF(OFFSET(AK19,$Y$4,0):OFFSET(AK19,0,$AH$4),\"\")","v":0},null,null,null,null,null,null,null,null,{"$f":"$Q$4*$Q$4-COUNTIF(OFFSET(AT19,$Y$4,0):OFFSET(AT19,0,$AH$4),\"\")","v":0},null,null,null,null,null,null,null,null,{"$f":"$Q$4*$Q$4-COUNTIF(OFFSET(BC19,$Y$4,0):OFFSET(BC19,0,$AH$4),\"\")","v":0},null,null,null,null,null,null,null,null,{"$f":"$Q$4*$Q$4-COUNTIF(OFFSET(BL19,$Y$4,0):OFFSET(BL19,0,$AH$4),\"\")","v":0},null,null,null,null,null,null,null,null,{"$f":"$Q$4*$Q$4-COUNTIF(OFFSET(BU19,$Y$4,0):OFFSET(BU19,0,$AH$4),\"\")","v":0},null,null,null,null,null,null,null,null,{"$f":"$Q$4*$Q$4-COUNTIF(OFFSET(CD19,$Y$4,0):OFFSET(CD19,0,$AH$4),\"\")","v":0},null,null,null,null,null,null,null,null,{"$f":"$Q$4*$Q$4-COUNTIF(OFFSET(CM19,$Y$4,0):OFFSET(CM19,0,$AH$4),\"\")","v":0},null,null,null,null,null,null,null,null,{"$f":"$Q$4*$Q$4-COUNTIF(OFFSET(CV19,$Y$4,0):OFFSET(CV19,0,$AH$4),\"\")","v":0},null,null,null,null,null,null,null,null,{"$f":"$Q$4*$Q$4-COUNTIF(OFFSET(DE19,$Y$4,0):OFFSET(DE19,0,$AH$4),\"\")","v":0},null,null,null,null,null,null,null,null,{"$f":"$Q$4*$Q$4-COUNTIF(OFFSET(DN19,$Y$4,0):OFFSET(DN19,0,$AH$4),\"\")","v":3},null,null,null,null,null,null,null,null,{"$f":"$Q$4*$Q$4-COUNTIF(OFFSET(DW19,$Y$4,0):OFFSET(DW19,0,$AH$4),\"\")","v":0},null,null,null,null,null,null,null,null,{"$f":"$Q$4*$Q$4-COUNTIF(OFFSET(EF19,$Y$4,0):OFFSET(EF19,0,$AH$4),\"\")","v":0},null,null,null,null,null,null,null,null,{"$f":"$Q$4*$Q$4-COUNTIF(OFFSET(EO19,$Y$4,0):OFFSET(EO19,0,$AH$4),\"\")","v":0},null,null,null,null,null,null,null,null,{"$f":"$Q$4*$Q$4-COUNTIF(OFFSET(EX19,$Y$4,0):OFFSET(EX19,0,$AH$4),\"\")","v":0},null,null,null,null,null,null,null,null,{"$f":"$Q$4*$Q$4-COUNTIF(OFFSET(FG19,$Y$4,0):OFFSET(FG19,0,$AH$4),\"\")","v":0},null,null,null,null,null,null,null,null,{"$f":"$Q$4*$Q$4-COUNTIF(OFFSET(FP19,$Y$4,0):OFFSET(FP19,0,$AH$4),\"\")","v":0},null,null,null,null,null,null,null,null,{"$f":"$Q$4*$Q$4-COUNTIF(OFFSET(FY19,$Y$4,0):OFFSET(FY19,0,$AH$4),\"\")","v":0},null,null,null,null,null,null,null,null,{"$f":"$Q$4*$Q$4-COUNTIF(OFFSET(GH19,$Y$4,0):OFFSET(GH19,0,$AH$4),\"\")","v":0},null,null,null,null,null,null,null,null,{"$f":"$Q$4*$Q$4-COUNTIF(OFFSET(GQ19,$Y$4,0):OFFSET(GQ19,0,$AH$4),\"\")","v":0},null,null,null,null,null,null,null,null,{"$f":"$Q$4*$Q$4-COUNTIF(OFFSET(GZ19,$Y$4,0):OFFSET(GZ19,0,$AH$4),\"\")","v":0},null,null,null,null,null,null,null,null,{"$f":"$Q$4*$Q$4-COUNTIF(OFFSET(HI19,$Y$4,0):OFFSET(HI19,0,$AH$4),\"\")","v":0},null,null,null,null,null,null,null,null,{"$f":"$Q$4*$Q$4-COUNTIF(OFFSET(HR19,$Y$4,0):OFFSET(HR19,0,$AH$4),\"\")","v":0},null,null,null,null,null,null,null,null,{"$f":"$Q$4*$Q$4-COUNTIF(OFFSET(IA19,$Y$4,0):OFFSET(IA19,0,$AH$4),\"\")","v":0},null,null,null,null,null,null,null,null,{"$f":"$Q$4*$Q$4-COUNTIF(OFFSET(IJ19,$Y$4,0):OFFSET(IJ19,0,$AH$4),\"\")","v":0},null,null,null,null,null,null,null,null,{"$f":"$Q$4*$Q$4-COUNTIF(OFFSET(IS19,$Y$4,0):OFFSET(IS19,0,$AH$4),\"\")","v":0},null,null,null,null,null,null,null,null,{"$f":"$Q$4*$Q$4-COUNTIF(OFFSET(JB19,$Y$4,0):OFFSET(JB19,0,$AH$4),\"\")","v":0},null,null,null,null,null,null,null,null,{"$f":"$Q$4*$Q$4-COUNTIF(OFFSET(JK19,$Y$4,0):OFFSET(JK19,0,$AH$4),\"\")","v":0},null,null,null,null,null,null,null,null,{"$f":"$Q$4*$Q$4-COUNTIF(OFFSET(JT19,$Y$4,0):OFFSET(JT19,0,$AH$4),\"\")","v":0},null,null,null,null,null,null,null,null,{"$f":"$Q$4*$Q$4-COUNTIF(OFFSET(KC19,$Y$4,0):OFFSET(KC19,0,$AH$4),\"\")","v":0}]
[]
[null,null,null,null,null,null,null,null,null,null,null,null,null,null,null,null,null,null,2,3,null,null,null,null,null,null,null,null,null,null,null,null,null,null,null,null,null,null,null,null,null,null,null,null,null,null,null,null,null,null,null,null,null,null,null,null,null,null,null,null,null,null,null,null,null,null,null,null,null,null,null,null,null,null,null,null,null,null,null,null,null,null,null,null,null,null,null,null,null,null,null,null,null,null,null,null,null,null,null,null,null,null,null,null,null,null,null,null,null,null,null,null,null,null,null,null,null,3,11]
[null,null,null,null,null,null,null,null,null,null,null,null,null,null,null,null,null,null,2,10,null,null,null,null,null,null,null,null,null,null,null,null,null,null,null,null,null,null,null,null,null,null,null,null,null,null,null,null,null,null,null,null,null,null,null,null,null,null,null,null,null,null,null,null,null,null,null,null,null,null,null,null,null,null,null,null,null,null,null,null,null,null,null,null,null,null,null,null,null,null,null,null,null,null,null,null,null,null,null,null,null,null,null,null,null,null,null,null,null,null,null,null,null,null,null,null,null,10,11]

{"sheet":"Tabelle4","index":3,"n_rows":10,"n_cols":20,"rows_kept":10,"cut":false,"hidden":false,"merged":[]}
[1,null,null,null,null,null,null,null,null,null,null,2]
[]
[null,7,11,0,2,22,5,29,2,null,null,null,7,11,0,2,22,5,29,2]
[null,7,0,2,11,13,10,29,0,null,null,null,7,0,2,11,13,10,29,0]
[null,3,8,8,2,2,15,1,25,null,null,null,3,8,8,2,2,15,1,25]
[null,20,1,11,27,0,15,4,10,null,null,null,20,1,11,27,0,15,4,10]
[null,8,13,13,1,5,1,4,1,null,null,null,8,13,13,1,5,1,4,1]
[null,4,0,1,3,0,7,9,0,null,null,null,4,0,1,3,0,7,9,0]
[null,2,16,6,2,9,8,12,3,null,null,null,2,16,6,2,9,8,12,3]
[null,9,4,20,5,4,24,21,11,null,null,null,9,4,20,5,4,24,21,11]